[Event "Titled Tuesday Blitz November 14 Late 2023"]
[White "topce"]
[Black "Winkels, Marcel"]
[BlackFideId "1003887"]
[WhiteElo "2488"]
[BlackElo "2099"]
[Result "0-1"]
[Round "9"]
[TimeControl "180+1"]
[Date "2023.11.14"]
[WhiteClock "0:01:04"]
[BlackClock "0:00:16"]
[Board "91"]

1. c4 {[%clk 0:03:00]}  e5 {[%clk 0:02:58]} 2. Nc3 {[%clk 0:03:00]}  Bb4 {[%clk 0:02:56]} 3. Nd5 {[%clk 0:02:58]}  Be7 {[%clk 0:02:56]} 4. Nxe7 {[%clk 0:02:58]}  Nxe7 {[%clk 0:02:55]} 5. b3 {[%clk 0:02:58]}  O-O {[%clk 0:02:55]} 6. Bb2 {[%clk 0:02:58]}  d6 {[%clk 0:02:54]} 7. d4 {[%clk 0:02:58]}  Nbc6 {[%clk 0:02:54]} 8. dxe5 {[%clk 0:02:58]}  dxe5 {[%clk 0:02:50]} 9. Qxd8 {[%clk 0:02:57]}  Rxd8 {[%clk 0:02:49]} 10. Nf3 {[%clk 0:02:49]}  f6 {[%clk 0:02:46]} 11. Rd1 {[%clk 0:02:39]}  Bf5 {[%clk 0:02:37]} 12. Ba3 {[%clk 0:02:27]}  a5 {[%clk 0:02:34]} 13. Rxd8+ {[%clk 0:02:08]}  Rxd8 {[%clk 0:02:30]} 14. e3 {[%clk 0:02:09]}  Nb4 {[%clk 0:02:25]} 15. Bxb4 {[%clk 0:01:57]}  axb4 {[%clk 0:02:24]} 16. c5 {[%clk 0:01:56]}  Ra8 {[%clk 0:02:15]} 17. Bc4+ {[%clk 0:01:56]}  Kf8 {[%clk 0:02:13]} 18. O-O {[%clk 0:01:57]}  Rxa2 {[%clk 0:02:10]} 19. Rd1 {[%clk 0:01:57]}  Ke8 {[%clk 0:02:01]} 20. h3 {[%clk 0:01:49]}  Rb2 {[%clk 0:01:49]} 21. Ra1 {[%clk 0:01:31]}  Rb1+ {[%clk 0:01:49]} 22. Rxb1 {[%clk 0:01:31]}  Bxb1 {[%clk 0:01:49]} 23. Nd2 {[%clk 0:01:31]}  Bf5 {[%clk 0:01:41]} 24. e4 {[%clk 0:01:31]}  Bd7 {[%clk 0:01:40]} 25. f3 {[%clk 0:01:30]}  Nc6 {[%clk 0:01:36]} 26. Kf2 {[%clk 0:01:29]}  Nd4 {[%clk 0:01:36]} 27. Ke3 {[%clk 0:01:29]}  Ke7 {[%clk 0:01:30]} 28. Bg8 {[%clk 0:01:27]}  h6 {[%clk 0:01:28]} 29. Kd3 {[%clk 0:01:27]}  Be6 {[%clk 0:01:27]} 30. Bxe6 {[%clk 0:01:27]}  Kxe6 {[%clk 0:01:26]} 31. Kc4 {[%clk 0:01:27]}  Nc2 {[%clk 0:01:25]} 32. Kd3 {[%clk 0:01:26]}  Nd4 {[%clk 0:01:24]} 33. Kc4 {[%clk 0:01:26]}  Nc6 {[%clk 0:01:21]} 34. Kb5 {[%clk 0:01:24]}  g6 {[%clk 0:01:17]} 35. Nc4 {[%clk 0:01:23]}  f5 {[%clk 0:01:13]} 36. Na5 {[%clk 0:01:22]}  fxe4 {[%clk 0:01:07]} 37. fxe4 {[%clk 0:01:21]}  Nd4+ {[%clk 0:00:58]} 38. Kxb4 {[%clk 0:01:21]}  Ne2 {[%clk 0:00:58]} 39. Nxb7 {[%clk 0:01:18]}  Ng3 {[%clk 0:00:57]} 40. Kb5 {[%clk 0:01:16]}  Kd7 {[%clk 0:00:52]} 41. c6+ {[%clk 0:01:14]}  Ke7 {[%clk 0:00:49]} 42. Nc5 {[%clk 0:01:15]}  Nf1 {[%clk 0:00:39]} 43. g4 {[%clk 0:01:09]}  Kd6 {[%clk 0:00:37]} 44. Nb7+ {[%clk 0:01:06]}  Ke7 {[%clk 0:00:36]} 45. Kc5 {[%clk 0:01:07]}  Ke6 {[%clk 0:00:32]} 46. b4 {[%clk 0:01:06]}  Ng3 {[%clk 0:00:31]} 47. Nd8+ {[%clk 0:00:59]}  Ke7 {[%clk 0:00:28]} 48. Kd5 {[%clk 0:00:58]}  Kxd8 {[%clk 0:00:25]} 49. Kxe5 {[%clk 0:00:58]}  Ke7 {[%clk 0:00:24]} 50. b5 {[%clk 0:00:57]}  Ne2 {[%clk 0:00:23]} 51. h4 {[%clk 0:00:55]}  Nc3 {[%clk 0:00:22]} 52. b6 {[%clk 0:00:54]}  cxb6 {[%clk 0:00:21]} 53. h5 {[%clk 0:00:55]}  gxh5 {[%clk 0:00:19]} 54. gxh5 {[%clk 0:00:55]}  b5 {[%clk 0:00:19]} 55. c7 {[%clk 0:00:56]}  Kd7 {[%clk 0:00:18]} 56. Kf5 {[%clk 0:00:56]}  b4 {[%clk 0:00:18]} 57. e5 {[%clk 0:00:56]}  Kxc7 {[%clk 0:00:16]} 58. e6 {[%clk 0:00:57]}  b3 {[%clk 0:00:16]} 59. Kf6 {[%clk 0:00:57]}  b2 {[%clk 0:00:14]} 60. Kf7 {[%clk 0:00:58]}  Nd5 {[%clk 0:00:13]} 61. e7 {[%clk 0:00:59]}  Nxe7 {[%clk 0:00:13]} 62. Kxe7 {[%clk 0:00:58]}  b1=Q {[%clk 0:00:13]} 63. Kf7 {[%clk 0:00:59]}  Qf5+ {[%clk 0:00:13]} 64. Kg7 {[%clk 0:00:59]}  Qxh5 {[%clk 0:00:13]} 65. Kh7 {[%clk 0:01:00]}  Qg5 {[%clk 0:00:13]} 66. Kh8 {[%clk 0:01:00]}  h5 {[%clk 0:00:13]} 67. Kh7 {[%clk 0:01:01]}  h4 {[%clk 0:00:14]} 68. Kh8 {[%clk 0:01:02]}  h3 {[%clk 0:00:15]} 69. Kh7 {[%clk 0:01:03]}  h2 {[%clk 0:00:15]} 70. Kh8 {[%clk 0:01:04]}  h1=Q# {[%clk 0:00:16]} 0-1


[Site "https://www.chess.com"]

[Event "Titled Tuesday Blitz November 14 Late 2023"]
[White "Romero Ruscalleda, Josep"]
[Black "Vila Dupla, Aurelio"]
[WhiteFideId "2231859"]
[BlackFideId "2203383"]
[WhiteElo "2320"]
[BlackElo "2203"]
[Result "1-0"]
[Round "9"]
[TimeControl "180+1"]
[Date "2023.11.14"]
[WhiteClock "0:01:48"]
[BlackClock "0:00:11"]
[Board "93"]

1. e4 {[%clk 0:02:54]}  c5 {[%clk 0:02:58]} 2. c3 {[%clk 0:02:54]}  d5 {[%clk 0:02:57]} 3. exd5 {[%clk 0:02:54]}  Qxd5 {[%clk 0:02:58]} 4. Nf3 {[%clk 0:02:54]}  Nf6 {[%clk 0:02:58]} 5. Na3 {[%clk 0:02:53]}  Bg4 {[%clk 0:02:37]} 6. Be2 {[%clk 0:02:50]}  Nc6 {[%clk 0:02:30]} 7. O-O {[%clk 0:02:49]}  e6 {[%clk 0:02:30]} 8. d4 {[%clk 0:02:46]}  cxd4 {[%clk 0:02:30]} 9. Nb5 {[%clk 0:02:47]}  Rc8 {[%clk 0:02:25]} 10. Nbxd4 {[%clk 0:02:44]}  Nxd4 {[%clk 0:02:07]} 11. Nxd4 {[%clk 0:02:44]}  Bxe2 {[%clk 0:02:06]} 12. Qxe2 {[%clk 0:02:45]}  a6 {[%clk 0:01:45]} 13. Rd1 {[%clk 0:02:41]}  Qe4 {[%clk 0:01:45]} 14. Be3 {[%clk 0:02:40]}  Bc5 {[%clk 0:01:38]} 15. Rd3 {[%clk 0:02:37]}  O-O {[%clk 0:01:36]} 16. Rad1 {[%clk 0:02:37]}  Nd5 {[%clk 0:01:23]} 17. Bc1 {[%clk 0:02:28]}  Qxe2 {[%clk 0:01:18]} 18. Nxe2 {[%clk 0:02:28]}  h6 {[%clk 0:01:12]} 19. g3 {[%clk 0:02:26]}  Be7 {[%clk 0:01:05]} 20. Kg2 {[%clk 0:02:22]}  Rfd8 {[%clk 0:01:03]} 21. Nf4 {[%clk 0:02:21]}  Nxf4+ {[%clk 0:01:01]} 22. Bxf4 {[%clk 0:02:21]}  Rxd3 {[%clk 0:01:00]} 23. Rxd3 {[%clk 0:02:21]}  Rd8 {[%clk 0:01:01]} 24. Rxd8+ {[%clk 0:02:20]}  Bxd8 {[%clk 0:01:01]} 25. Kf3 {[%clk 0:02:21]}  f5 {[%clk 0:00:59]} 26. Be5 {[%clk 0:02:20]}  Kf7 {[%clk 0:00:58]} 27. Ke2 {[%clk 0:02:18]}  g6 {[%clk 0:00:54]} 28. f3 {[%clk 0:02:17]}  b5 {[%clk 0:00:53]} 29. Kd3 {[%clk 0:02:16]}  Bb6 {[%clk 0:00:53]} 30. a4 {[%clk 0:02:14]}  Ke7 {[%clk 0:00:51]} 31. axb5 {[%clk 0:02:13]}  axb5 {[%clk 0:00:51]} 32. c4 {[%clk 0:02:11]}  bxc4+ {[%clk 0:00:46]} 33. Kxc4 {[%clk 0:02:11]}  Kd7 {[%clk 0:00:46]} 34. Kb5 {[%clk 0:02:11]}  Bg1 {[%clk 0:00:45]} 35. h4 {[%clk 0:02:09]}  Kc8 {[%clk 0:00:34]} 36. Kc6 {[%clk 0:02:07]}  g5 {[%clk 0:00:20]} 37. hxg5 {[%clk 0:02:05]}  hxg5 {[%clk 0:00:20]} 38. b4 {[%clk 0:02:06]}  g4 {[%clk 0:00:20]} 39. fxg4 {[%clk 0:02:05]}  fxg4 {[%clk 0:00:19]} 40. b5 {[%clk 0:02:05]}  Ba7 {[%clk 0:00:16]} 41. b6 {[%clk 0:01:56]}  Bb8 {[%clk 0:00:14]} 42. Bxb8 {[%clk 0:01:48]}  Kxb8 {[%clk 0:00:14]} 43. Kd6 {[%clk 0:01:47]}  Kb7 {[%clk 0:00:15]} 44. Kxe6 {[%clk 0:01:48]}  Kxb6 {[%clk 0:00:16]} 45. Kf5 {[%clk 0:01:48]}  Kc6 {[%clk 0:00:16]} 46. Kxg4 {[%clk 0:01:49]}  Kd6 {[%clk 0:00:17]} 47. Kf5 {[%clk 0:01:49]}  Ke7 {[%clk 0:00:17]} 48. Kg6 {[%clk 0:01:49]}  Kf8 {[%clk 0:00:17]} 49. Kh7 {[%clk 0:01:47]}  Kf7 {[%clk 0:00:17]} 50. g4 {[%clk 0:01:48]}  Kf6 {[%clk 0:00:17]} 51. Kh6 {[%clk 0:01:48]}  Kf7 {[%clk 0:00:17]} 52. g5 {[%clk 0:01:48]}  Kg8 {[%clk 0:00:11]} 53. Kg6 {[%clk 0:01:48]} 1-0


[Site "https://www.chess.com"]

[Event "Titled Tuesday Blitz November 14 Late 2023"]
[White "Harish, Neeraj"]
[Black "Freeeeeeeeeeeeeeeeee"]
[WhiteFideId "30958130"]
[WhiteElo "2310"]
[BlackElo "2043"]
[Result "1/2-1/2"]
[Round "9"]
[TimeControl "180+1"]
[Date "2023.11.14"]
[WhiteClock "0:00:11"]
[BlackClock "0:00:12"]
[Board "99"]

1. e4 {[%clk 0:02:54]}  e5 {[%clk 0:02:56]} 2. Nf3 {[%clk 0:02:53]}  Nc6 {[%clk 0:02:57]} 3. Bc4 {[%clk 0:02:50]}  Nf6 {[%clk 0:02:57]} 4. d3 {[%clk 0:02:47]}  Be7 {[%clk 0:02:57]} 5. O-O {[%clk 0:02:42]}  O-O {[%clk 0:02:56]} 6. Nc3 {[%clk 0:02:41]}  d6 {[%clk 0:02:57]} 7. a4 {[%clk 0:02:40]}  Na5 {[%clk 0:02:47]} 8. Ba2 {[%clk 0:02:33]}  c5 {[%clk 0:02:47]} 9. Nd5 {[%clk 0:02:32]}  Nxd5 {[%clk 0:02:43]} 10. Bxd5 {[%clk 0:02:30]}  Be6 {[%clk 0:02:44]} 11. Bxe6 {[%clk 0:01:56]}  fxe6 {[%clk 0:02:43]} 12. c3 {[%clk 0:01:56]}  Bf6 {[%clk 0:01:39]} 13. b4 {[%clk 0:01:41]}  cxb4 {[%clk 0:01:37]} 14. cxb4 {[%clk 0:01:42]}  Nc6 {[%clk 0:01:38]} 15. Qb3 {[%clk 0:01:41]}  Qd7 {[%clk 0:01:32]} 16. Bd2 {[%clk 0:01:25]}  Rac8 {[%clk 0:01:08]} 17. b5 {[%clk 0:01:24]}  Ne7 {[%clk 0:00:56]} 18. Rfc1 {[%clk 0:00:59]}  h6 {[%clk 0:00:45]} 19. a5 {[%clk 0:00:57]}  d5 {[%clk 0:00:43]} 20. Bb4 {[%clk 0:00:53]}  Rxc1+ {[%clk 0:00:35]} 21. Rxc1 {[%clk 0:00:53]}  Qxb5 {[%clk 0:00:34]} 22. Qa3 {[%clk 0:00:53]}  Re8 {[%clk 0:00:23]} 23. Rc5 {[%clk 0:00:40]}  Qa6 {[%clk 0:00:20]} 24. Rc7 {[%clk 0:00:38]}  Nc6 {[%clk 0:00:20]} 25. Bd6 {[%clk 0:00:17]}  dxe4 {[%clk 0:00:05]} 26. dxe4 {[%clk 0:00:17]}  Qxa5 {[%clk 0:00:06]} 27. Qxa5 {[%clk 0:00:16]}  Nxa5 {[%clk 0:00:07]} 28. Bxe5 {[%clk 0:00:17]}  Bxe5 {[%clk 0:00:07]} 29. Nxe5 {[%clk 0:00:18]}  Rb8 {[%clk 0:00:05]} 30. h4 {[%clk 0:00:14]}  b5 {[%clk 0:00:05]} 31. Rxa7 {[%clk 0:00:14]}  Nc4 {[%clk 0:00:04]} 32. Nxc4 {[%clk 0:00:12]}  bxc4 {[%clk 0:00:05]} 33. Rc7 {[%clk 0:00:12]}  Rb4 {[%clk 0:00:05]} 34. Kh2 {[%clk 0:00:11]}  c3 {[%clk 0:00:05]} 35. Rxc3 {[%clk 0:00:10]}  Rxe4 {[%clk 0:00:05]} 36. Rc7 {[%clk 0:00:10]}  Rxh4+ {[%clk 0:00:05]} 37. Kg3 {[%clk 0:00:10]}  Rh5 {[%clk 0:00:05]} 38. f3 {[%clk 0:00:10]}  Rg5+ {[%clk 0:00:06]} 39. Kf2 {[%clk 0:00:10]}  Rf5 {[%clk 0:00:06]} 40. Rb7 {[%clk 0:00:10]}  Rf7 {[%clk 0:00:06]} 41. Rb8+ {[%clk 0:00:10]}  Rf8 {[%clk 0:00:07]} 42. Rb7 {[%clk 0:00:10]}  Re8 {[%clk 0:00:08]} 43. Rc7 {[%clk 0:00:10]}  Kf8 {[%clk 0:00:08]} 44. Rb7 {[%clk 0:00:10]}  Re7 {[%clk 0:00:09]} 45. Rb8+ {[%clk 0:00:11]}  Kf7 {[%clk 0:00:09]} 46. Kg3 {[%clk 0:00:11]}  Kf6 {[%clk 0:00:10]} 47. Rb5 {[%clk 0:00:10]}  e5 {[%clk 0:00:10]} 48. Rb6+ {[%clk 0:00:10]}  Re6 {[%clk 0:00:11]} 49. Rb7 {[%clk 0:00:10]}  Re7 {[%clk 0:00:07]} 50. Rb6+ {[%clk 0:00:10]}  Kf5 {[%clk 0:00:07]} 51. Rb4 {[%clk 0:00:09]}  g5 {[%clk 0:00:07]} 52. Rb6 {[%clk 0:00:08]}  Re6 {[%clk 0:00:06]} 53. Rb7 {[%clk 0:00:08]}  h5 {[%clk 0:00:07]} 54. Kf2 {[%clk 0:00:08]}  h4 {[%clk 0:00:07]} 55. g4+ {[%clk 0:00:06]}  Kf6 {[%clk 0:00:05]} 56. Rh7 {[%clk 0:00:04]}  Re7 {[%clk 0:00:04]} 57. Rh6+ {[%clk 0:00:04]}  Kg7 {[%clk 0:00:05]} 58. Ra6 {[%clk 0:00:04]}  Kf7 {[%clk 0:00:05]} 59. Rb6 {[%clk 0:00:04]}  Re6 {[%clk 0:00:05]} 60. Rb7+ {[%clk 0:00:05]}  Kf6 {[%clk 0:00:06]} 61. Rh7 {[%clk 0:00:05]}  e4 {[%clk 0:00:07]} 62. fxe4 {[%clk 0:00:04]}  Rxe4 {[%clk 0:00:07]} 63. Rh6+ {[%clk 0:00:02]}  Kg7 {[%clk 0:00:08]} 64. Ra6 {[%clk 0:00:02]}  Rxg4 {[%clk 0:00:08]} 65. Kf3 {[%clk 0:00:02]}  Rf4+ {[%clk 0:00:08]} 66. Kg2 {[%clk 0:00:02]}  Rf6 {[%clk 0:00:09]} 67. Ra7+ {[%clk 0:00:02]}  Kg6 {[%clk 0:00:08]} 68. Kh3 {[%clk 0:00:03]}  Kh5 {[%clk 0:00:09]} 69. Rh7+ {[%clk 0:00:03]}  Rh6 {[%clk 0:00:09]} 70. Ra7 {[%clk 0:00:03]}  g4+ {[%clk 0:00:09]} 71. Kh2 {[%clk 0:00:04]}  Rg6 {[%clk 0:00:10]} 72. Ra5+ {[%clk 0:00:04]}  Rg5 {[%clk 0:00:10]} 73. Ra8 {[%clk 0:00:04]}  Kg6 {[%clk 0:00:10]} 74. Rg8+ {[%clk 0:00:04]}  Kf6 {[%clk 0:00:10]} 75. Ra8 {[%clk 0:00:05]}  Rg6 {[%clk 0:00:10]} 76. Ra6+ {[%clk 0:00:05]}  Kg5 {[%clk 0:00:10]} 77. Ra5+ {[%clk 0:00:06]}  Kh6 {[%clk 0:00:11]} 78. Ra7 {[%clk 0:00:05]}  Rf6 {[%clk 0:00:11]} 79. Ra5 {[%clk 0:00:06]}  Rf3 {[%clk 0:00:10]} 80. Kg2 {[%clk 0:00:06]}  Rf6 {[%clk 0:00:10]} 81. Kh2 {[%clk 0:00:06]}  Rg6 {[%clk 0:00:11]} 82. Kg2 {[%clk 0:00:06]}  Rg5 {[%clk 0:00:11]} 83. Ra6+ {[%clk 0:00:06]}  Kh5 {[%clk 0:00:12]} 84. Ra8 {[%clk 0:00:07]}  h3+ {[%clk 0:00:12]} 85. Kg3 {[%clk 0:00:06]}  Rf5 {[%clk 0:00:13]} 86. Rh8+ {[%clk 0:00:06]}  Kg5 {[%clk 0:00:13]} 87. Rg8+ {[%clk 0:00:06]}  Kh5 {[%clk 0:00:12]} 88. Rxg4 {[%clk 0:00:06]}  h2 {[%clk 0:00:08]} 89. Rh4+ {[%clk 0:00:06]}  Kg5 {[%clk 0:00:08]} 90. Rxh2 {[%clk 0:00:07]}  Rd5 {[%clk 0:00:09]} 91. Rg2 {[%clk 0:00:07]}  Rd3+ {[%clk 0:00:09]} 92. Kh2+ {[%clk 0:00:07]}  Kf4 {[%clk 0:00:09]} 93. Rf2+ {[%clk 0:00:07]}  Ke3 {[%clk 0:00:10]} 94. Rg2 {[%clk 0:00:08]}  Ke4 {[%clk 0:00:10]} 95. Rg4+ {[%clk 0:00:08]}  Kf5 {[%clk 0:00:10]} 96. Rg2 {[%clk 0:00:09]}  Kf4 {[%clk 0:00:11]} 97. Rf2+ {[%clk 0:00:10]}  Ke3 {[%clk 0:00:11]} 98. Rg2 {[%clk 0:00:11]}  Kf4 {[%clk 0:00:12]} 1/2-1/2


[Site "https://www.chess.com"]

[Event "Titled Tuesday Blitz November 14 Late 2023"]
[White "Broca Jimenez, Fernando"]
[Black "Gyulamiryan-koryun"]
[WhiteFideId "5104742"]
[WhiteElo "2202"]
[BlackElo "1896"]
[Result "1-0"]
[Round "9"]
[TimeControl "180+1"]
[Date "2023.11.14"]
[WhiteClock "0:00:11"]
[BlackClock "0:00:00"]
[Board "100"]

1. e4 {[%clk 0:03:00]}  e5 {[%clk 0:02:54]} 2. Nf3 {[%clk 0:02:59]}  Nc6 {[%clk 0:02:53]} 3. Bb5 {[%clk 0:03:00]}  a6 {[%clk 0:02:53]} 4. Ba4 {[%clk 0:03:00]}  Nf6 {[%clk 0:02:53]} 5. O-O {[%clk 0:03:00]}  Be7 {[%clk 0:02:53]} 6. Re1 {[%clk 0:02:57]}  b5 {[%clk 0:02:53]} 7. Bb3 {[%clk 0:02:57]}  O-O {[%clk 0:02:53]} 8. h3 {[%clk 0:02:57]}  d6 {[%clk 0:02:50]} 9. c3 {[%clk 0:02:56]}  Be6 {[%clk 0:02:49]} 10. d4 {[%clk 0:02:47]}  Bxb3 {[%clk 0:02:46]} 11. axb3 {[%clk 0:02:48]}  exd4 {[%clk 0:02:40]} 12. cxd4 {[%clk 0:02:49]}  d5 {[%clk 0:02:35]} 13. e5 {[%clk 0:02:49]}  Ne4 {[%clk 0:02:35]} 14. Nc3 {[%clk 0:02:49]}  f6 {[%clk 0:02:12]} 15. Qd3 {[%clk 0:01:55]}  Nb4 {[%clk 0:02:08]} 16. Qd1 {[%clk 0:01:40]}  fxe5 {[%clk 0:02:00]} 17. dxe5 {[%clk 0:01:37]}  Nc5 {[%clk 0:01:41]} 18. Na2 {[%clk 0:00:49]}  Ncd3 {[%clk 0:01:28]} 19. Re2 {[%clk 0:00:35]}  c6 {[%clk 0:01:25]} 20. Nxb4 {[%clk 0:00:30]}  Nxb4 {[%clk 0:01:24]} 21. Bd2 {[%clk 0:00:30]}  a5 {[%clk 0:01:16]} 22. Nd4 {[%clk 0:00:24]}  Qd7 {[%clk 0:01:00]} 23. Bxb4 {[%clk 0:00:20]}  Bxb4 {[%clk 0:00:57]} 24. Rc1 {[%clk 0:00:20]}  c5 {[%clk 0:00:55]} 25. Nc2 {[%clk 0:00:20]}  Rac8 {[%clk 0:00:31]} 26. Nxb4 {[%clk 0:00:19]}  axb4 {[%clk 0:00:31]} 27. Rd2 {[%clk 0:00:17]}  d4 {[%clk 0:00:28]} 28. Qe2 {[%clk 0:00:17]}  Qe6 {[%clk 0:00:14]} 29. Qxb5 {[%clk 0:00:15]}  Qxb3 {[%clk 0:00:13]} 30. Rxc5 {[%clk 0:00:14]}  Rxc5 {[%clk 0:00:09]} 31. Qxc5 {[%clk 0:00:14]}  d3 {[%clk 0:00:00]} 32. e6 {[%clk 0:00:11]} 1-0


[Site "https://www.chess.com"]

[Event "Titled Tuesday Blitz November 14 Late 2023"]
[White "Burke, Paul"]
[Black "Darko-Dimitrijevic"]
[WhiteFideId "2605767"]
[WhiteElo "1856"]
[BlackElo "2185"]
[Result "0-1"]
[Round "9"]
[TimeControl "180+1"]
[Date "2023.11.14"]
[WhiteClock "0:01:48"]
[BlackClock "0:01:40"]
[Board "101"]

1. e4 {[%clk 0:02:44]}  d6 {[%clk 0:02:58]} 2. Nc3 {[%clk 0:02:43]}  Nf6 {[%clk 0:02:55]} 3. g3 {[%clk 0:02:43]}  c6 {[%clk 0:02:55]} 4. Bg2 {[%clk 0:02:44]}  Bg4 {[%clk 0:02:52]} 5. Nge2 {[%clk 0:02:41]}  e5 {[%clk 0:02:44]} 6. h3 {[%clk 0:02:40]}  Bh5 {[%clk 0:02:42]} 7. O-O {[%clk 0:02:36]}  Nbd7 {[%clk 0:02:33]} 8. d3 {[%clk 0:02:35]}  Be7 {[%clk 0:02:31]} 9. Be3 {[%clk 0:02:35]}  b5 {[%clk 0:02:29]} 10. a3 {[%clk 0:02:35]}  h6 {[%clk 0:02:24]} 11. Qd2 {[%clk 0:02:34]}  O-O {[%clk 0:02:23]} 12. f4 {[%clk 0:02:33]}  Bxe2 {[%clk 0:02:15]} 13. Nxe2 {[%clk 0:02:31]}  Qc7 {[%clk 0:02:11]} 14. f5 {[%clk 0:02:30]}  Rad8 {[%clk 0:01:56]} 15. g4 {[%clk 0:02:30]}  d5 {[%clk 0:01:55]} 16. Bxh6 {[%clk 0:02:11]}  gxh6 {[%clk 0:01:54]} 17. Qxh6 {[%clk 0:02:11]}  Nh7 {[%clk 0:01:52]} 18. h4 {[%clk 0:02:09]}  Qd6 {[%clk 0:01:45]} 19. Qh5 {[%clk 0:01:48]}  Ndf6 {[%clk 0:01:40]} 0-1


[Site "https://www.chess.com"]

[Event "Titled Tuesday Blitz November 14 Late 2023"]
[White "katharinareinecke"]
[Black "Dahlgren, James Allen"]
[BlackFideId "22256873"]
[WhiteElo "1963"]
[BlackElo "2134"]
[Result "0-1"]
[Round "9"]
[TimeControl "180+1"]
[Date "2023.11.14"]
[WhiteClock "0:00:26"]
[BlackClock "0:00:07"]
[Board "102"]

1. d4 {[%clk 0:03:00]}  e6 {[%clk 0:01:10]} 2. c4 {[%clk 0:02:58]}  c5 {[%clk 0:01:11]} 3. Nf3 {[%clk 0:02:58]}  cxd4 {[%clk 0:01:12]} 4. Nxd4 {[%clk 0:02:58]}  Nf6 {[%clk 0:01:13]} 5. g3 {[%clk 0:02:58]}  Nc6 {[%clk 0:01:11]} 6. Bg2 {[%clk 0:02:56]}  d5 {[%clk 0:01:08]} 7. Nxc6 {[%clk 0:02:52]}  bxc6 {[%clk 0:01:00]} 8. O-O {[%clk 0:02:52]}  Bd6 {[%clk 0:00:58]} 9. Bg5 {[%clk 0:02:50]}  O-O {[%clk 0:00:58]} 10. Nc3 {[%clk 0:02:47]}  Rb8 {[%clk 0:00:59]} 11. b3 {[%clk 0:02:45]}  h6 {[%clk 0:00:58]} 12. Bc1 {[%clk 0:02:34]}  Qe7 {[%clk 0:00:56]} 13. cxd5 {[%clk 0:02:28]}  cxd5 {[%clk 0:00:57]} 14. Bb2 {[%clk 0:02:27]}  Ba6 {[%clk 0:00:54]} 15. Re1 {[%clk 0:02:26]}  Rfc8 {[%clk 0:00:50]} 16. Rc1 {[%clk 0:02:26]}  Ba3 {[%clk 0:00:34]} 17. Bxa3 {[%clk 0:02:22]}  Qxa3 {[%clk 0:00:35]} 18. Qd2 {[%clk 0:02:22]}  Qd6 {[%clk 0:00:31]} 19. e4 {[%clk 0:02:15]}  Qb4 {[%clk 0:00:13]} 20. exd5 {[%clk 0:02:09]}  Nxd5 {[%clk 0:00:14]} 21. Bxd5 {[%clk 0:02:09]}  exd5 {[%clk 0:00:04]} 22. Red1 {[%clk 0:01:48]}  Rd8 {[%clk 0:00:03]} 23. Na4 {[%clk 0:01:42]}  Qd6 {[%clk 0:00:02]} 24. Rc5 {[%clk 0:01:38]}  d4 {[%clk 0:00:02]} 25. Rdc1 {[%clk 0:01:20]}  Bb7 {[%clk 0:00:03]} 26. Qf4 {[%clk 0:01:07]}  d3 {[%clk 0:00:03]} 27. Qxd6 {[%clk 0:01:07]}  Rxd6 {[%clk 0:00:04]} 28. Rd1 {[%clk 0:01:03]}  d2 {[%clk 0:00:04]} 29. Rc2 {[%clk 0:01:01]}  Rbd8 {[%clk 0:00:05]} 30. Nc5 {[%clk 0:01:00]}  Bf3 {[%clk 0:00:05]} 31. Rdxd2 {[%clk 0:00:35]}  Rxd2 {[%clk 0:00:06]} 32. Rxd2 {[%clk 0:00:26]}  Rxd2 {[%clk 0:00:07]} 0-1


[Site "https://www.chess.com"]

[Event "Titled Tuesday Blitz November 14 Late 2023"]
[White "Smirnov, Timofey"]
[Black "Feliz Dotel, Dewar Bienvenido"]
[WhiteFideId "24176427"]
[BlackFideId "6402801"]
[WhiteElo "2099"]
[BlackElo "2110"]
[Result "1-0"]
[Round "9"]
[TimeControl "180+1"]
[Date "2023.11.14"]
[WhiteClock "0:00:05"]
[BlackClock "0:00:00"]
[Board "103"]

1. d4 {[%clk 0:03:00]}  d5 {[%clk 0:02:55]} 2. Bf4 {[%clk 0:03:00]}  e6 {[%clk 0:02:55]} 3. e3 {[%clk 0:03:00]}  c5 {[%clk 0:02:53]} 4. c3 {[%clk 0:03:00]}  Nf6 {[%clk 0:02:50]} 5. Nd2 {[%clk 0:03:00]}  Bd6 {[%clk 0:02:50]} 6. Bg3 {[%clk 0:02:59]}  O-O {[%clk 0:02:47]} 7. Ngf3 {[%clk 0:02:55]}  b6 {[%clk 0:02:46]} 8. Bd3 {[%clk 0:02:51]}  Ba6 {[%clk 0:02:41]} 9. Bxa6 {[%clk 0:02:42]}  Nxa6 {[%clk 0:02:40]} 10. O-O {[%clk 0:02:43]}  Nb8 {[%clk 0:02:39]} 11. Ne5 {[%clk 0:02:42]}  Qc7 {[%clk 0:02:29]} 12. Ndf3 {[%clk 0:02:40]}  Nc6 {[%clk 0:02:23]} 13. Re1 {[%clk 0:02:29]}  Ne4 {[%clk 0:02:15]} 14. Nxc6 {[%clk 0:02:17]}  Nxg3 {[%clk 0:01:55]} 15. hxg3 {[%clk 0:02:18]}  Qxc6 {[%clk 0:01:55]} 16. a4 {[%clk 0:02:14]}  Rae8 {[%clk 0:01:35]} 17. Ne5 {[%clk 0:01:58]}  Bxe5 {[%clk 0:01:33]} 18. dxe5 {[%clk 0:01:59]}  Qc7 {[%clk 0:01:17]} 19. f4 {[%clk 0:01:58]}  f6 {[%clk 0:01:17]} 20. exf6 {[%clk 0:01:56]}  Rxf6 {[%clk 0:01:15]} 21. Kf2 {[%clk 0:01:47]}  Qf7 {[%clk 0:01:08]} 22. Rh1 {[%clk 0:01:44]}  e5 {[%clk 0:01:06]} 23. Qh5 {[%clk 0:01:42]}  Qxh5 {[%clk 0:01:00]} 24. Rxh5 {[%clk 0:01:42]}  d4 {[%clk 0:00:55]} 25. cxd4 {[%clk 0:01:38]}  cxd4 {[%clk 0:00:55]} 26. Re1 {[%clk 0:00:44]}  d3 {[%clk 0:00:49]} 27. Rd1 {[%clk 0:00:32]}  g6 {[%clk 0:00:31]} 28. Rhh1 {[%clk 0:00:28]}  e4 {[%clk 0:00:30]} 29. Rc1 {[%clk 0:00:23]}  Rf7 {[%clk 0:00:18]} 30. Rc4 {[%clk 0:00:20]}  Rd7 {[%clk 0:00:14]} 31. Rd1 {[%clk 0:00:20]}  Ree7 {[%clk 0:00:14]} 32. Rc8+ {[%clk 0:00:19]}  Kg7 {[%clk 0:00:13]} 33. Rc4 {[%clk 0:00:20]}  Rc7 {[%clk 0:00:11]} 34. b3 {[%clk 0:00:13]}  a6 {[%clk 0:00:09]} 35. Ke1 {[%clk 0:00:12]}  b5 {[%clk 0:00:09]} 36. axb5 {[%clk 0:00:13]}  axb5 {[%clk 0:00:10]} 37. Rxc7 {[%clk 0:00:13]}  Rxc7 {[%clk 0:00:10]} 38. Ra1 {[%clk 0:00:09]}  Rc2 {[%clk 0:00:09]} 39. Ra5 {[%clk 0:00:08]}  Re2+ {[%clk 0:00:08]} 40. Kd1 {[%clk 0:00:07]}  Rxe3 {[%clk 0:00:08]} 41. Rxb5 {[%clk 0:00:07]}  Re2 {[%clk 0:00:05]} 42. Rb7+ {[%clk 0:00:07]}  Kf6 {[%clk 0:00:00]} 43. b4 {[%clk 0:00:05]} 1-0


[Site "https://www.chess.com"]